bitfinex-derivatives/quotes_ETHF0:USTF0_20260118
["timestamp","ask_amount","ask_price","bid_price","bid_amount"]
[1768720648802,1.0616543,3309.0,3307.5,0.24213904]
[1768720649003,0.23937518,3309.2,3307.5,0.24213904]
[1768720649302,1.06161025,3309.1,3307.5,0.24213904]
[1768720649506,1.06161025,3309.0,3307.5,0.24213904]
[1768720649704,0.23937518,3309.2,3307.5,0.24213904]
[1768720652110,2.07349518,3309.6,3307.5,0.24213904]
[1768720652300,1.65599575,3309.5,3307.5,0.24213904]
[1768720652500,1.06159758,3309.4,3307.5,0.24213904]
[1768720656409,1.29499996,3309.4,3307.5,0.24213904]
[1768720656606,0.23340238,3309.4,3307.5,0.24213904]
[1768720657004,0.23340238,3309.2,3307.5,0.24213904]
[1768720657905,0.23340238,3309.0,3307.5,0.00266604]
[1768720662316,0.23340238,3308.6,3307.5,0.00266604]
[1768720668520,0.23340238,3308.4,3307.5,0.00266604]
[1768720677630,0.23340238,3308.4,3306.6,0.15126]
[1768720678031,0.23340238,3308.4,3306.6,0.39465803]
[1768720678634,0.23340238,3308.4,3306.6,0.3969917]
[1768720679337,0.23340238,3308.4,3306.7,0.24339803]
[1768720679529,0.23340238,3308.4,3306.6,0.15359367]
[1768720680036,0.23340238,3308.4,3306.6,0.3969917]
[1768720682844,0.97551608,3308.7,3306.7,0.24339803]
[1768720683130,1.06224042,3308.6,3306.7,0.24339803]
[1768720683332,0.2317692,3308.8,3306.7,0.24339803]
[1768720683631,1.6493642,3308.7,3306.7,0.24339803]
[1768720683831,1.06228903,3308.6,3306.7,0.24339803]
[1768720684036,0.2317692,3308.7,3306.7,0.24339803]
[1768720684232,1.06234655,3308.6,3306.7,0.24339803]
[1768720684430,0.2317692,3308.7,3306.7,0.24339803]
[1768720684630,1.06235725,3308.6,3306.7,0.24339803]
[1768720684929,0.2317692,3308.7,3306.7,0.24339803]
[1768720685130,1.06234212,3308.6,3306.7,0.24339803]
[1768720685333,0.2317692,3308.7,3306.7,0.24339803]
[1768720685530,1.06243445,3308.6,3306.7,0.24339803]
[1768720685733,0.2317692,3308.7,3306.7,0.24339803]
[1768720685937,1.06243319,3308.6,3306.7,0.24339803]
[1768720686138,0.2317692,3308.7,3306.7,0.24339803]
[1768720686339,1.06252983,3308.6,3306.7,0.24339803]
[1768720686537,0.2317692,3308.7,3306.7,0.24339803]
[1768720686835,1.0625307,3308.6,3306.7,0.24339803]
[1768720687036,0.2317692,3308.7,3306.7,0.24339803]
[1768720687235,1.06264737,3308.6,3306.7,0.24339803]
[1768720687436,0.2317692,3308.7,3306.7,0.24339803]
[1768720687637,1.06264483,3308.6,3306.7,0.24339803]
[1768720687936,0.2317692,3308.7,3306.7,0.24339803]
[1768720688128,1.06264367,3308.6,3306.7,0.24339803]
[1768720688325,0.2317692,3308.7,3306.7,0.24339803]
[1768720688629,1.06277221,3308.6,3306.7,0.24339803]
[1768720688829,0.2317692,3308.7,3306.7,0.24339803]
[1768720689133,1.0627722,3308.6,3306.7,0.24339803]
[1768720689328,1.0627722,3308.5,3306.7,0.24339803]
[1768720689529,0.2317692,3308.7,3306.7,0.24339803]
[1768720689728,1.06292741,3308.6,3306.7,0.24339803]
[1768720689938,1.06292741,3308.5,3306.7,0.24339803]
[1768720690140,0.2317692,3308.6,3306.7,0.24339803]
[1768720690438,1.06308104,3308.5,3306.7,0.24339803]
[1768720690639,0.2317692,3308.6,3306.7,0.24339803]
[1768720690837,1.06310161,3308.5,3306.7,0.24339803]
[1768720691042,0.2317692,3308.6,3306.7,0.24339803]
[1768720691240,1.06332824,3308.5,3306.7,0.24339803]
[1768720691539,0.2317692,3308.6,3306.7,0.24339803]
[1768720691747,1.06336282,3308.5,3306.7,0.24339803]
[1768720692037,0.2317692,3308.6,3306.7,0.24339803]
[1768720692243,1.06364912,3308.5,3306.7,0.24339803]
[1768720692443,0.2317692,3308.6,3306.7,0.24339803]
[1768720692639,1.06366944,3308.5,3306.7,0.24339803]
[1768720692941,0.2317692,3308.6,3306.7,0.24339803]
[1768720693139,1.06367082,3308.5,3306.7,0.24339803]
[1768720693441,0.2317692,3308.6,3306.7,0.24339803]
[1768720693639,1.06377411,3308.5,3306.7,0.24339803]
[1768720693839,0.2317692,3308.6,3306.7,0.24339803]
[1768720694030,1.06377411,3308.5,3306.7,0.24339803]
[1768720694234,0.2317692,3308.6,3306.7,0.24339803]
[1768720694434,1.06389585,3308.5,3306.7,0.24339803]
[1768720694641,0.2317692,3308.6,3306.7,0.24339803]
[1768720694836,1.06389585,3308.5,3306.7,0.24339803]
[1768720695036,0.2317692,3308.6,3306.7,0.24339803]
[1768720695240,1.06403053,3308.5,3306.7,0.24339803]
[1768720695443,0.2317692,3308.6,3306.7,0.24339803]
[1768720695643,1.06404634,3308.5,3306.7,0.24339803]
[1768720695943,0.2317692,3308.6,3306.7,0.24339803]
[1768720696146,1.06404636,3308.5,3306.7,0.24339803]
[1768720696347,1.06404636,3308.4,3306.7,0.24339803]
[1768720696540,0.2317692,3308.6,3306.7,0.24339803]
[1768720696735,1.0642486,3308.5,3306.7,0.24339803]
[1768720696941,1.0642486,3308.4,3306.7,0.24339803]
[1768720697147,0.2317692,3308.6,3306.7,0.24339803]
[1768720697350,1.42060917,3308.5,3306.7,0.24339803]
[1768720697547,1.06455555,3308.4,3306.7,0.24339803]
[1768720697852,0.2317692,3308.6,3306.7,0.24339803]
[1768720698045,1.42061323,3308.5,3306.7,0.24339803]
[1768720698240,1.06456013,3308.4,3306.7,0.24339803]
[1768720698442,0.2317692,3308.6,3306.7,0.24339803]
[1768720698646,1.42099718,3308.5,3306.7,0.24339803]
[1768720698849,1.06485661,3308.4,3306.7,0.24339803]
[1768720699052,0.2317692,3308.6,3306.7,0.24339803]
[1768720699241,1.42099589,3308.5,3306.7,0.24339803]
[1768720699449,1.06485524,3308.4,3306.7,0.24339803]
[1768720699654,0.2317692,3308.6,3306.7,0.24339803]
[1768720699843,1.42099135,3308.5,3306.7,0.24339803]
[1768720700043,1.06485226,3308.4,3306.7,0.24339803]
[1768720700253,0.2317692,3308.6,3306.7,0.24339803]
[1768720700466,1.42082212,3308.5,3306.7,0.24339803]
[1768720700756,1.06472546,3308.4,3306.8,0.24339803]
[1768720701052,0.2317692,3308.6,3306.8,0.24339803]
[1768720701252,1.4208284,3308.5,3306.8,0.24339803]
[1768720701452,1.06472979,3308.4,3307.3,0.9755571]
[1768720701754,0.2317692,3308.6,3307.3,0.9755571]
[1768720701954,1.4208263,3308.5,3307.3,0.9755571]
[1768720702150,1.0647288,3308.4,3307.3,0.9755571]
[1768720702456,0.2317692,3308.6,3307.3,0.9755571]
[1768720702753,1.42081051,3308.5,3307.3,0.9755571]
[1768720702954,0.24868876,3309.0,3307.7,0.9755571]
[1768720703252,2.39651542,3308.9,3307.5,0.9755571]
[1768720703556,1.06482959,3308.8,3307.5,0.9755571]
[1768720703745,1.06482959,3308.7,3307.5,0.9755571]
[1768720704057,0.9755571,3308.9,3307.5,0.9755571]
[1768720704351,1.06435917,3308.8,3307.5,0.9755571]
[1768720704547,0.9755571,3308.9,3307.5,0.9755571]
[1768720704750,1.06413644,3308.8,3307.5,0.9755571]
[1768720704947,0.9755571,3308.9,3307.5,0.9755571]
[1768720705149,1.06413779,3308.8,3307.5,0.9755571]
[1768720705349,0.9755571,3308.9,3307.5,0.9755571]
[1768720705650,1.06396972,3308.8,3307.5,0.9755571]
[1768720705851,0.9755571,3308.9,3307.5,0.9755571]
[1768720706051,1.06396972,3308.8,3307.5,0.9755571]
[1768720706251,0.9755571,3308.9,3307.5,0.9755571]
[1768720706453,1.06383736,3308.8,3307.5,0.9755571]
[1768720706752,0.24868876,3308.8,3307.5,0.9755571]
[1768720708557,0.9755571,3308.7,3307.5,0.9755571]
[1768720710862,0.9755571,3308.7,3307.3,0.25046042]
[1768720711062,0.9755571,3308.7,3307.4,0.9755571]
[1768720726171,0.24868876,3308.8,3307.4,0.9755571]
[1768720728070,1.62780467,3309.3,3307.6,0.9755571]
[1768720728275,1.62780467,3309.3,3307.5,0.24224627]
[1768720728276,0.9755571,3309.1,3307.8,0.9755571]
[1768720728572,1.41960484,3309.0,3307.8,0.9755571]
[1768720728773,1.41960484,3308.9,3307.8,0.9755571]
[1768720728970,1.06381454,3308.8,3307.8,0.9755571]
[1768720729171,0.9755571,3309.1,3307.8,0.9755571]
[1768720729367,1.41979916,3309.0,3307.8,0.9755571]
[1768720729569,1.41979916,3308.9,3307.8,0.9755571]
[1768720729764,0.9755571,3309.1,3307.8,0.9755571]
[1768720729765,1.06396002,3308.8,3307.8,0.9755571]
[1768720729967,0.9755571,3309.1,3307.8,0.9755571]
[1768720730275,1.41979916,3309.0,3307.8,0.9755571]
[1768720730479,1.41979916,3308.9,3307.8,0.9755571]
[1768720730685,1.06396002,3308.8,3307.8,0.9755571]
[1768720730987,0.9755571,3309.1,3307.8,0.9755571]
[1768720731289,1.41998874,3309.0,3307.8,0.9755571]
[1768720731587,0.2442687,3309.4,3308.2,0.9755571]
[1768720731772,1.41932209,3309.3,3308.0,0.9755571]
[1768720732073,1.41932209,3309.2,3308.0,0.9755571]
[1768720732275,1.06333717,3309.1,3308.0,0.9755571]
[1768720732477,1.2198258,3309.4,3308.0,0.9755571]
[1768720732679,1.41921715,3309.3,3308.0,0.9755571]
[1768720732877,1.2198258,3309.4,3308.0,0.9755571]
[1768720732878,1.41921715,3309.2,3308.0,0.9755571]
[1768720733078,1.06325942,3309.1,3308.0,0.9755571]
[1768720733384,0.2442687,3309.4,3308.0,0.9755571]
[1768720733696,1.41887478,3309.3,3308.2,0.9755571]
[1768720733991,1.06300213,3309.2,3308.2,0.9755571]
[1768720734179,0.9755571,3309.6,3308.2,0.9755571]
[1768720734381,1.41884229,3309.5,3308.2,0.9755571]
[1768720734689,1.41884229,3309.4,3308.2,0.9755571]
[1768720734890,1.06305771,3309.3,3308.2,0.9755571]
[1768720735189,0.9755571,3309.6,3308.2,0.9755571]
[1768720735385,1.41322928,3309.5,3308.2,0.9755571]
[1768720735590,1.41322928,3309.4,3308.2,0.9755571]
[1768720735790,1.06274497,3309.3,3308.2,0.9755571]
[1768720735989,0.9755571,3309.7,3308.2,0.9755571]
[1768720736189,1.41300136,3309.6,3308.3,0.25812898]
[1768720736489,1.41300136,3309.6,3308.2,0.9755571]
[1768720736490,0.9755571,3309.6,3308.2,0.9755571]
[1768720737286,0.9755571,3309.6,3308.2,1.23368608]
[1768720737992,0.9755571,3309.8,3308.2,1.23368608]
[1768720738192,0.9755571,3309.8,3308.4,0.9755571]
[1768720739801,0.9755571,3309.6,3308.2,0.25812898]
[1768720739989,0.9755571,3309.1,3307.7,1.23368608]
[1768720740388,1.21806959,3309.3,3307.8,0.9755571]
[1768720740592,0.24251249,3309.2,3307.8,0.9755571]
[1768720740793,0.24251249,3309.2,3307.7,0.25812898]
[1768720740993,0.24251249,3309.2,3307.8,0.9755571]
[1768720743096,0.24251249,3309.2,3308.0,0.9755571]
[1768720743400,0.9755571,3309.3,3308.0,0.9755571]
[1768720744498,0.9755571,3309.5,3308.0,0.9755571]
[1768720744995,0.24251249,3309.6,3308.0,0.9755571]
[1768720745198,0.9755571,3309.5,3308.1,0.25812898]
[1768720747599,0.24251249,3310.0,3308.2,1.23368608]
[1768720747801,0.9755571,3309.8,3308.4,0.9755571]
[1768720750601,0.9755571,3309.8,3308.4,1.23368608]
[1768720759708,0.9755571,3309.7,3308.4,1.23368608]
[1768720760111,0.9755571,3309.7,3308.5,0.25812898]
[1768720761001,0.9755571,3309.9,3308.6,0.9755571]
[1768720761201,1.06196825,3309.8,3308.6,1.23368608]
[1768720761495,0.9755571,3309.9,3308.6,1.23368608]
[1768720761700,1.06235877,3309.8,3308.6,1.23368608]
[1768720762003,0.9755571,3309.9,3308.6,1.23368608]
[1768720762205,1.06262391,3309.8,3308.6,1.23368608]
[1768720762402,0.9755571,3309.9,3308.6,1.23368608]
[1768720762602,1.06200964,3309.8,3308.6,1.23368608]
[1768720762802,0.9755571,3310.1,3308.6,1.23368608]
[1768720762999,1.41217562,3310.0,3308.6,1.23368608]
[1768720763205,1.06199178,3309.9,3308.6,1.23368608]
[1768720763408,1.06225929,3309.8,3308.6,0.25812898]
[1768720763614,0.24469814,3310.3,3308.6,0.25812898]
[1768720763814,1.41251802,3310.2,3308.6,0.25812898]
[1768720764006,1.41251802,3310.1,3308.6,0.25812898]
[1768720764215,1.41251802,3310.0,3308.6,0.25812898]
[1768720764507,1.06225611,3309.9,3308.6,0.25812898]
[1768720764709,1.06225611,3309.8,3308.6,0.25812898]
[1768720764910,0.24469814,3310.3,3308.6,0.25812898]
[1768720765219,1.41266283,3310.2,3308.6,0.25812898]
[1768720765415,1.41266283,3310.1,3308.6,0.25812898]
[1768720765605,1.41266283,3310.0,3308.6,0.25812898]
[1768720765901,1.06237146,3309.9,3308.6,0.25812898]
[1768720766104,1.06237146,3309.8,3308.6,0.25812898]
[1768720766305,1.87250281,3310.3,3308.6,0.25812898]
[1768720766604,1.41287182,3310.2,3308.6,0.25812898]
[1768720766806,1.41287182,3310.1,3308.6,0.25812898]
[1768720767003,1.41287182,3310.0,3308.6,0.25812898]
[1768720767204,1.41287182,3309.9,3308.6,0.25812898]
[1768720767416,1.0624896,3309.8,3308.6,0.25812898]
[1768720767714,0.24115127,3310.2,3308.6,0.25812898]
[1768720767904,1.41287108,3310.1,3308.6,0.25812898]
[1768720768105,1.41287108,3310.0,3308.6,0.25812898]
[1768720768317,1.06248972,3309.9,3308.6,0.25812898]
[1768720768505,1.06248972,3309.8,3308.6,0.25812898]
[1768720768706,0.24115127,3310.2,3308.6,0.25812898]
[1768720768907,1.06248781,3310.1,3308.6,0.25812898]
[1768720769211,1.06248781,3310.0,3308.6,0.25812898]
[1768720769514,1.41287743,3309.9,3308.6,0.25812898]
[1768720769812,1.06248781,3309.8,3308.6,0.25812898]
[1768720770114,0.24115127,3310.2,3308.6,0.25812898]
[1768720770317,1.06247543,3310.1,3308.6,0.25812898]
[1768720770507,1.41286499,3310.0,3308.6,0.25812898]
[1768720770709,1.06247543,3309.9,3308.6,0.25812898]
[1768720771417,1.06247543,3309.8,3308.6,0.25812898]
[1768720771619,0.24115127,3310.2,3308.6,0.25812898]
[1768720771810,1.412882,3310.1,3308.6,0.25812898]
[1768720772017,1.412882,3310.0,3308.6,0.25812898]
[1768720772317,1.06249082,3309.9,3308.6,0.25812898]
[1768720772513,1.06249082,3309.8,3308.6,0.25812898]
[1768720772819,0.24115127,3310.2,3308.6,0.25812898]
[1768720773018,1.41324009,3310.1,3308.6,0.25812898]
[1768720773212,1.06276361,3310.0,3308.6,0.25812898]
[1768720773412,0.24115127,3310.2,3308.6,0.25812898]
[1768720773606,1.41326745,3310.1,3308.6,0.25812898]
[1768720773809,0.00354687,3310.3,3307.6,3.024]
[1768720773810,0.00354687,3310.3,3309.1,0.26148582]
[1768720774112,1.06286623,3310.2,3309.1,0.26386263]
[1768720774320,0.00354687,3310.3,3309.1,0.26386263]
[1768720781126,0.00354687,3310.3,3309.1,0.00237681]
[1768720781428,1.3256541,3310.2,3309.1,0.00237681]
[1768720781624,0.26425328,3310.2,3309.1,0.00237681]
[1768720782230,0.00354687,3310.3,3309.1,0.00237681]
[1768720787726,0.00354687,3310.3,3309.1,0.25383836]
[1768720825351,0.00354687,3310.3,3309.5,1.23604624]
[1768720838464,0.00354687,3310.3,3309.5,0.2618131]
[1768720879696,2.60203781,3311.2,3309.8,0.26019192]
[1768720879898,1.41047988,3311.1,3309.8,0.26019192]
[1768720880098,1.41047988,3311.0,3309.8,0.26019192]
[1768720880301,1.41047988,3310.9,3309.8,0.26019192]
[1768720880599,1.41047988,3310.8,3309.8,0.26019192]
[1768720880788,1.0597558,3310.7,3309.8,0.26019192]
[1768720881099,0.00385469,3310.9,3309.8,0.26019192]
[1768720881300,1.41047461,3310.8,3309.8,0.26019192]
[1768720881599,1.05975115,3310.7,3309.8,0.26019192]
[1768720881799,0.00385469,3310.9,3309.8,0.26019192]
[1768720881999,1.41030266,3310.8,3309.8,0.26019192]
[1768720882204,1.05958122,3310.7,3309.8,0.26019192]
[1768720882406,0.00385469,3310.9,3309.8,0.26019192]
[1768720882593,1.41029711,3310.8,3309.8,0.26019192]
[1768720882793,1.05957703,3310.7,3309.8,0.26019192]
[1768720883096,0.00385469,3310.9,3309.8,0.26019192]
[1768720883294,1.41029291,3310.8,3309.8,0.26019192]
[1768720883596,1.05957282,3310.7,3309.8,0.26019192]
[1768720883894,0.00385469,3310.9,3309.8,0.26019192]
[1768720884095,1.41029045,3310.8,3309.8,0.26019192]
[1768720884302,1.05957202,3310.7,3309.8,0.26019192]
[1768720884504,0.00385469,3310.9,3309.8,0.26019192]
[1768720884703,1.41028432,3310.8,3309.8,0.26019192]
[1768720885000,1.05956751,3310.7,3309.8,0.26019192]
[1768720885201,0.00385469,3310.9,3309.8,0.26019192]
[1768720885400,1.41028074,3310.8,3309.8,0.26019192]
[1768720885604,1.05956473,3310.7,3309.8,0.26019192]
[1768720885902,0.00385469,3310.9,3309.8,0.26019192]
[1768720886102,1.41028073,3310.8,3309.8,0.26019192]
[1768720886303,1.05956472,3310.7,3309.8,0.26019192]
[1768720886498,0.97423314,3310.8,3309.4,0.97423314]
[1768720886798,1.05956034,3310.7,3309.4,0.97423314]
[1768720887106,0.97423314,3310.8,3309.4,1.23987509]
[1768720887402,1.05955852,3310.7,3309.4,0.26564195]
[1768720887605,0.00385469,3310.9,3309.4,0.26564195]
[1768720887804,1.4102725,3310.8,3309.4,0.26564195]
[1768720888010,1.0595585,3310.7,3309.4,0.26564195]
[1768720888204,0.00385469,3310.9,3309.4,0.26564195]
[1768720888391,1.41027253,3310.8,3309.4,0.26564195]
[1768720888595,1.05955853,3310.7,3309.4,0.26564195]
[1768720888799,0.00385469,3310.9,3309.4,0.26564195]
[1768720888998,1.4102725,3310.8,3309.4,0.26564195]
[1768720889208,1.05955851,3310.7,3309.4,0.26564195]
[1768720889407,0.00385469,3310.9,3309.4,0.26564195]
[1768720889707,1.41027143,3310.8,3309.4,0.26564195]
[1768720889912,1.0595577,3310.7,3309.4,0.26564195]
[1768720890097,0.00385469,3310.9,3309.4,0.26564195]
[1768720890302,1.41027734,3310.8,3309.4,0.26564195]
[1768720890600,0.00385469,3310.9,3309.4,0.26564195]
[1768720890805,0.35071496,3310.8,3309.4,0.26564195]
[1768720891006,0.00385469,3310.9,3309.4,0.26564195]
[1768720891206,0.35071495,3310.8,3309.4,0.26564195]
[1768720891408,1.05955607,3310.7,3309.4,0.26564195]
[1768720891704,0.00385469,3310.9,3309.4,0.26564195]
[1768720891905,1.41027589,3310.8,3309.4,0.26564195]
[1768720892205,1.05956103,3310.7,3309.4,0.26564195]
[1768720892506,1.0595616,3310.6,3309.4,0.26564195]
[1768720892708,0.00385469,3310.9,3309.4,0.26564195]
[1768720892910,1.41027754,3310.8,3309.4,0.26564195]
[1768720893108,1.05956122,3310.7,3309.4,0.26564195]
[1768720893310,1.05956122,3310.6,3309.4,0.26564195]
[1768720893513,0.00385469,3310.9,3309.4,0.26564195]
[1768720893709,1.41024409,3310.8,3309.4,0.26564195]
[1768720894009,1.05953633,3310.7,3309.4,0.26564195]
[1768720894201,1.05953633,3310.6,3309.4,0.26564195]
[1768720894402,0.00385469,3310.9,3309.4,0.26564195]
[1768720894602,1.41024828,3310.8,3309.4,0.26564195]
[1768720894805,1.05953953,3310.7,3309.4,0.26564195]
[1768720895002,1.05953953,3310.6,3309.4,0.26564195]
[1768720895202,0.00385469,3310.9,3309.4,0.26564195]
[1768720895398,1.41017962,3310.8,3309.4,0.26564195]
[1768720895604,1.05948795,3310.7,3309.4,0.26564195]
[1768720895814,1.05948795,3310.6,3309.4,0.26564195]
[1768720896012,0.00385469,3310.9,3309.4,0.26564195]
[1768720896215,1.41013997,3310.8,3309.4,0.26564195]
[1768720896508,1.05945903,3310.7,3309.4,0.26564195]
[1768720896711,1.05945903,3310.6,3309.4,0.26564195]
[1768720896912,0.00385469,3310.9,3309.4,0.26564195]
[1768720897214,1.41009627,3310.8,3309.4,0.26564195]
[1768720897415,1.05942533,3310.7,3309.4,0.26564195]
[1768720897614,1.05942533,3310.6,3309.4,0.26564195]
[1768720897913,0.00385469,3310.9,3309.4,0.26564195]
[1768720898115,1.41010109,3310.8,3309.4,0.26564195]
[1768720898418,1.05942895,3310.7,3309.4,0.26564195]
[1768720898618,1.05942895,3310.6,3309.4,0.26564195]
[1768720898915,0.00385469,3310.9,3309.4,0.26564195]
[1768720899114,1.41010621,3310.8,3309.4,0.26564195]
[1768720899314,1.0594328,3310.7,3309.4,0.26564195]
[1768720899512,1.0594328,3310.6,3309.4,0.26564195]
[1768720899718,0.24613315,3310.9,3309.4,0.26564195]
[1768720899918,1.41010635,3310.8,3309.4,0.26564195]
[1768720900221,1.0594329,3310.7,3309.4,0.26564195]
[1768720900411,1.0594329,3310.6,3309.4,0.26564195]
[1768720900612,0.24613315,3310.9,3309.4,0.26564195]
[1768720900814,1.41002853,3310.8,3309.4,0.26564195]
[1768720901011,1.05937443,3310.7,3309.4,0.26564195]
[1768720901313,1.05937443,3310.6,3309.4,0.26564195]
[1768720901518,0.24613315,3310.9,3309.4,0.26564195]
[1768720901719,1.40999877,3310.8,3309.4,0.26564195]
[1768720901908,1.40999877,3310.7,3309.4,0.26564195]
[1768720902104,1.05935186,3310.6,3309.4,0.26564195]
[1768720902309,0.24613315,3310.9,3309.4,0.26564195]
[1768720902509,1.4100051,3310.8,3309.4,0.26564195]
[1768720902708,0.24613315,3310.9,3309.4,0.26564195]
[1768720902709,1.4100051,3310.7,3309.4,0.26564195]
[1768720902914,1.05935661,3310.6,3309.4,0.26564195]
[1768720903114,0.24613315,3310.9,3309.4,0.26564195]
[1768720903309,1.41001601,3310.8,3309.4,0.26564195]
[1768720903609,1.41001601,3310.7,3309.4,0.26564195]
[1768720903808,1.05936487,3310.6,3309.4,0.26564195]
[1768720904016,0.24613315,3310.9,3309.4,0.26564195]
[1768720904220,1.41002444,3310.8,3309.4,0.26564195]
[1768720904412,1.41002444,3310.7,3309.4,0.26564195]
[1768720904613,1.05937331,3310.6,3309.4,0.26564195]
[1768720904820,0.24613315,3310.9,3309.4,0.26564195]
[1768720905019,1.4100226,3310.8,3309.4,0.26564195]
[1768720905320,1.4100226,3310.7,3309.4,0.26564195]
[1768720905617,1.05936979,3310.6,3309.4,0.26564195]
[1768720905817,0.24613315,3310.9,3309.4,0.26564195]
[1768720906018,1.41003452,3310.8,3309.4,0.26564195]
[1768720906218,1.41003452,3310.7,3309.4,0.26564195]
[1768720906519,1.05937877,3310.6,3309.4,0.26564195]
[1768720906719,0.24613315,3310.9,3309.4,0.26564195]
[1768720907020,1.41004514,3310.8,3309.4,0.26564195]
[1768720907215,1.41004514,3310.7,3309.4,0.26564195]
[1768720907417,1.05938676,3310.6,3309.4,0.26564195]
[1768720907620,0.24613315,3310.9,3309.4,0.26564195]
[1768720907815,1.41006427,3310.8,3309.4,0.26564195]
[1768720908015,1.41006427,3310.7,3309.4,0.26564195]
[1768720908218,1.05940108,3310.6,3309.4,0.26564195]
[1768720908418,0.24613315,3310.9,3309.4,0.26564195]
[1768720908719,1.41007311,3310.8,3309.4,0.26564195]
[1768720908917,1.41007311,3310.7,3309.4,0.26564195]
[1768720909118,1.05940771,3310.6,3309.4,0.26564195]
[1768720909320,0.24613315,3310.9,3309.4,0.26564195]
[1768720909524,1.410067,3310.8,3309.4,0.26564195]
[1768720909712,1.410067,3310.7,3309.4,0.26564195]
[1768720909916,1.30168156,3310.6,3309.1,0.15352681]
[1768720910117,0.24227846,3310.6,3309.1,0.40386891]
[1768720911924,0.24227846,3310.6,3309.1,0.25271891]
[1768720922028,0.00385469,3310.9,3309.1,0.25271891]
[1768720922237,1.41077288,3310.8,3309.1,0.25271891]
[1768720922429,1.41077288,3310.7,3309.1,0.25271891]
[1768720922730,1.0600893,3310.6,3309.1,0.25271891]
[1768720922931,0.00385469,3310.9,3309.1,0.25271891]
[1768720923125,1.41078518,3310.8,3309.1,0.25271891]
[1768720923327,1.41078518,3310.7,3309.1,0.25271891]
[1768720923526,1.0600928,3310.6,3309.1,0.25271891]
[1768720923736,0.00385469,3310.9,3309.1,0.25271891]
[1768720923932,1.41080354,3310.8,3309.1,0.25271891]
[1768720924233,1.41080354,3310.7,3309.1,0.25271891]
[1768720924534,1.06010658,3310.6,3309.1,0.25271891]
[1768720924834,0.00385469,3310.9,3309.1,0.25271891]
[1768720925033,1.41082175,3310.8,3309.1,0.25271891]
[1768720925239,1.41082175,3310.7,3309.1,0.25271891]
[1768720925540,1.06012033,3310.6,3309.1,0.25271891]
[1768720925734,0.00385469,3310.9,3309.1,0.25271891]
[1768720926031,1.41112146,3310.8,3309.1,0.25271891]
[1768720926234,1.41112146,3310.7,3309.1,0.25271891]
[1768720926430,1.06034557,3310.6,3309.1,0.25271891]
[1768720926629,0.00385469,3310.9,3309.1,0.25271891]
[1768720926831,1.41124246,3310.8,3309.1,0.25271891]
[1768720927032,1.41124246,3310.7,3309.1,0.25271891]
[1768720927233,1.06043649,3310.6,3309.1,0.25271891]
[1768720927437,0.00385469,3310.9,3309.1,0.25271891]
[1768720927639,1.41126503,3310.8,3309.1,0.25271891]
[1768720927938,1.41126503,3310.7,3309.1,0.25271891]
[1768720928125,1.06045349,3310.6,3309.1,0.25271891]
[1768720928328,0.00385469,3310.9,3309.1,0.25271891]
[1768720928529,1.41115123,3310.8,3309.1,0.25271891]
[1768720928726,1.41115123,3310.7,3309.1,0.25271891]
[1768720928930,1.06036806,3310.6,3309.1,0.25271891]
[1768720929130,0.00385469,3310.9,3309.1,0.25271891]
[1768720929331,1.41118365,3310.8,3309.1,0.25271891]
[1768720929534,1.41118365,3310.7,3309.1,0.25271891]
[1768720929838,1.0603925,3310.6,3309.1,0.25271891]
[1768720930041,0.00385469,3310.9,3309.1,0.25271891]
[1768720930343,1.4112216,3310.8,3309.1,0.25271891]
[1768720930538,1.4112216,3310.7,3309.1,0.25271891]
[1768720930734,1.06043022,3310.6,3309.1,0.25271891]
[1768720930938,0.00385469,3310.9,3309.1,0.25271891]
[1768720931137,1.41123205,3310.8,3309.1,0.25271891]
[1768720931337,1.41123205,3310.7,3309.1,0.25271891]
[1768720931537,1.0604289,3310.6,3309.1,0.25271891]
[1768720931742,0.00385469,3310.9,3309.1,0.25271891]
[1768720932043,1.41122786,3310.8,3309.1,0.25271891]
[1768720932243,1.41122786,3310.7,3309.1,0.25271891]
[1768720932444,1.06042571,3310.6,3309.1,0.25271891]
[1768720932742,0.00385469,3310.9,3309.1,0.25271891]
[1768720932942,1.41122915,3310.8,3309.1,0.25271891]
[1768720933141,1.41122915,3310.7,3309.1,0.25271891]
[1768720933342,1.0604267,3310.6,3309.1,0.25271891]
[1768720933642,0.00385469,3310.9,3309.1,0.25271891]
[1768720933941,1.41121896,3310.8,3309.1,0.25271891]
[1768720934136,1.41121896,3310.7,3309.1,0.25271891]
[1768720934335,1.06041899,3310.6,3309.1,0.25271891]
[1768720934543,0.00385469,3310.9,3309.1,0.25271891]
[1768720934741,1.4112095,3310.8,3309.1,0.25271891]
[1768720934943,1.4112095,3310.7,3309.1,0.25271891]
[1768720935145,1.06041206,3310.6,3309.1,0.25271891]
[1768720935346,0.00385469,3310.9,3309.1,0.25271891]
[1768720935642,1.4112239,3310.8,3309.1,0.25271891]
[1768720935844,1.4112239,3310.7,3309.1,0.25271891]
[1768720936036,1.06042888,3310.6,3309.1,0.25271891]
[1768720936240,0.00385469,3310.9,3309.1,0.25271891]
[1768720936442,1.41121695,3310.8,3309.1,0.25271891]
[1768720936640,1.41121695,3310.7,3309.1,0.25271891]
[1768720936939,1.06042284,3310.6,3309.1,0.25271891]
[1768720937138,0.00385469,3310.9,3309.1,0.25271891]
[1768720937339,1.41121139,3310.8,3309.1,0.25271891]
[1768720937537,1.41121139,3310.7,3309.1,0.25271891]
[1768720937743,1.06041924,3310.6,3309.1,0.25271891]
[1768720937947,0.00385469,3310.9,3309.1,0.25271891]
[1768720938145,1.41118293,3310.8,3309.1,0.25271891]
[1768720938344,1.41118293,3310.7,3309.1,0.25271891]
[1768720938543,1.06039187,3310.6,3309.1,0.25271891]
[1768720938744,0.00385469,3310.9,3309.1,0.25271891]
[1768720939043,1.41117631,3310.8,3309.1,0.25271891]
[1768720939241,1.41117631,3310.7,3309.1,0.25271891]
[1768720939441,1.06038686,3310.6,3309.1,0.25271891]
[1768720939638,0.00385469,3310.9,3309.1,0.25271891]
[1768720939847,1.41116809,3310.8,3309.1,0.25271891]
[1768720940052,1.41116809,3310.7,3309.1,0.25271891]
[1768720940243,1.06038064,3310.6,3309.1,0.25271891]
[1768720940444,0.00385469,3310.9,3309.1,0.25271891]
[1768720940744,1.4111687,3310.8,3309.1,0.25271891]
[1768720940944,1.4111687,3310.7,3309.1,0.25271891]
[1768720941148,1.06038101,3310.6,3309.1,0.25271891]
[1768720941448,0.00385469,3310.9,3309.1,0.25271891]
[1768720941648,1.41116939,3310.8,3309.1,0.25271891]
[1768720941948,1.41116939,3310.7,3309.1,0.25271891]
[1768720942146,1.06038146,3310.6,3309.1,0.25271891]
[1768720942445,0.00385469,3310.9,3309.1,0.25271891]
[1768720942639,1.41119153,3310.8,3309.1,0.25271891]
[1768720942838,1.41119153,3310.7,3309.1,0.25271891]
[1768720943040,1.06041966,3310.6,3309.1,0.25271891]
[1768720943240,0.00385469,3310.9,3309.1,0.25271891]
[1768720943442,1.4108932,3310.8,3309.1,0.25271891]
[1768720943637,1.4108932,3310.7,3309.1,0.25271891]
[1768720943841,1.06019569,3310.6,3309.1,0.25271891]
[1768720944046,0.00385469,3310.9,3309.1,0.25271891]
[1768720944244,1.41080623,3310.8,3309.1,0.25271891]